[Event "21st Hogeschool Zeeland 2017"]
[Site "Vlissingen"]
[Date "2017.08.12"]
[Round "9"]
[White "Kuipers, Stefan"]
[Black "Klepke, Ricardo"]
[Result "1-0"]
[ECO "B90"]
[WhiteElo "2399"]
[BlackElo "2205"]
[Annotator "NA"]
[PlyCount "157"]
[EventDate "2017.??.??"]
[SourceTitle "playchess.com"]
[Source "ChessBase"]
[SourceQuality "1"]
[TimeControl "40/5400+30:1800+30"]

{[%evp 8,153,22,15,20,32767,32767,32767,63,49,43,38,83,99,126,129,98,2,3,2,9,14,15,9,67,65,66,12,48,19,58,51,64,56,70,37,45,36,83,81,91,76,76,68,79,47,112,101,103,32767,32767,32767,32767,32767,32767,32767,113,32767,97,124,32767,32767,118,133,32767,32767,32767,111,140,147,160,184,158,135,138,133,139,153,143,137,142,104,32767,32767,32767,32767,32767,32767,150,172,151,168,158,120,123,125,32767,32767,32767,32767,32767,32767,32767,32767,32767,32767,32767,32767,32767,32767,32767,32767,32767,32767,32767,154,147,122,138,118,157,120,150,156,147,156,134,149,140,169,170,150,128,171,32767,187,32767,205,297,358,32767,32767,32767,12843,456,29972,29974,29976]} 1. e4 {[%emt 0:00:00]} c5 {[%emt 0:00:06]} 2. Nf3 {[%emt 0:00:00]} d6 {[%emt 0:00:08]} 3. d4 {[%emt 0:00:00]} cxd4 {[%emt 0:00:07]} 4. Nxd4 {[%emt 0:00:00]} Nf6 {[%emt 0:00:08]} 5. Nc3 {[%emt 0:00:00]} a6 {[%emt 0:00:05] LiveBook: 60719 Games} 6. Qd3 {[%emt 0:00:00] B90: Sicilian Najdorf: Unusual White 6th moves, 6 Be3 Ng4 and 6 Be3 e5} (6. h3 e6 7. g4 h6 8. Bg2 Be7 9. Be3 Nc6 10. f4 Nd7 11. O-O O-O 12. Nf3 b5 13. Ne2 Bb7 14. Ng3 Rc8 15. c3 Na5 16. Bf2 {½-½ (46) Harikrishna,P (2737)-Navara,D (2737) Biel 2017}) 6... Nc6 {[%emt 0:05:09]} 7. Bg5 {[%emt 0:01:38]} Qa5 {[%emt 0:06:47]} 8. f4 {[%emt 0:04:05]} (8. Bxf6 $5 gxf6 9. Nb3 $11) 8... Nxd4 {[%emt 0:07:01]} 9. Qxd4 {[%emt 0:00:17]} Be6 $146 {[%emt 0:00:19]} ({Predecessor:} 9... e5 $11 10. Qd2 Be7 11. f5 b5 12. Bxf6 Bxf6 13. Qxd6 Bb7 14. O-O-O Rd8 15. Qc5 Rc8 16. Qa7 {½-½ (27) Grabics,M (2355)-Kovalevskaya,E (2480) Rotterdam 1998}) 10. b4 {[%emt 0:14:59]} Qc7 {[%emt 0:01:57]} ({Better is} 10... Qd8 $1 $14) 11. f5 {[%emt 0:00:38]} Rc8 {[%emt 0:08:32]} 12. fxe6 {[%emt 0:01:59]} (12. Nb5 $1 $16 {[%cal Rb5c7]} axb5 13. fxe6 fxe6 14. Bxb5+ Kf7 15. c4 (15. O-O h6 $16)) 12... Qxc3+ {[%emt 0:00:25]} 13. Qxc3 {[%emt 0:00:06]} Rxc3 {[%emt 0:00:07]} 14. exf7+ {[%emt 0:00:05]} Kxf7 {[%emt 0:00:20]} 15. Bd3 {[%emt 0:00:07]} e5 {[%emt 0:05:41]} 16. Bd2 {[%emt 0:06:23]} Rc7 {[%emt 0:03:01]} 17. Rf1 {[%emt 0:05:02]} ({Better is} 17. c4 $16) 17... Be7 {[%emt 0:04:42]} 18. Ke2 {[%emt 0:02:11]} Ke6 {[%emt 0:02:42]} 19. c4 {[%emt 0:04:14]} Rf8 {[%emt 0:09:19]} 20. Rac1 {[%emt 0:06:31]} h6 {[%emt 0:04:26]} 21. Bc3 {[%emt 0:06:27]} b6 {[%emt 0:07:37]} 22. Bd2 {[%emt 0:05:37]} Nh5 {[%emt 0:06:03]} 23. Rxf8 {[%emt 0:06:00]} Bxf8 {[%emt 0:00:07]} 24. g3 {[%emt 0:00:15]} Nf6 {[%emt 0:02:08]} 25. Be3 {[%emt 0:03:23]} Nd7 {[%emt 0:01:55]} 26. Rc3 {[%emt 0:07:46]} Rb7 {[%emt 0:02:25]} ({Better is} 26... Be7 $14) 27. Bc2 {[%emt 0:04:16]} Nb8 {[%emt 0:04:34]} 28. c5 {[%emt 0:06:49]} Rc7 {[%emt 0:04:25]} 29. Bb3+ {[%emt 0:01:00]} Kd7 {[%emt 0:01:02]} 30. Rd3 {[%emt 0:00:58]} bxc5 {[%emt 0:01:03]} 31. Bxc5 {[%emt 0:02:01]} Nc6 {[%emt 0:01:14]} 32. a3 {[%emt 0:01:01]} Nd4+ {[%emt 0:05:30]} 33. Bxd4 {[%emt 0:00:07]} exd4 {[%emt 0:00:04]} 34. Rxd4 {[%emt 0:00:12]} Be7 {[%emt 0:00:36]} 35. e5 {[%emt 0:01:12]} Rc3 {[%emt 0:00:34]} 36. e6+ {[%emt 0:00:53]} Kd8 {[%emt 0:01:07]} 37. Rd3 {[%emt 0:00:45]} Rc1 {[%emt 0:01:00]} 38. Kf3 {[%emt 0:04:39]} Kc7 {[%emt 0:02:27]} 39. Ke4 {[%emt 0:01:05]} g6 {[%emt 0:01:05]} 40. Rd2 {[%emt 0:02:52]} Re1+ {[%emt 0:31:02]} 41. Kd3 {[%emt 0:32:12]} Re5 {[%emt 0:03:10]} 42. Rc2+ {[%emt 0:00:00]} Kb6 {[%emt 0:00:00]} 43. Rc8 {[%emt 0:00:00]} d5 {[%emt 0:00:00]} 44. Kd4 {[%emt 0:00:00]} Rxe6 {[%emt 0:00:00]} 45. Bxd5 {[%emt 0:00:00]} Bf6+ {[%emt 0:00:00]} 46. Kc4 {[%emt 0:00:00]} Rd6 {[%emt 0:00:00]} 47. Rc5 {[%emt 0:00:00]} Ka7 {[%emt 0:00:00]} 48. Rc7+ {[%emt 0:00:00]} Kb8 {[%emt 0:00:00]} 49. Rb7+ {[%emt 0:00:00]} Kc8 {[%emt 0:00:00]} 50. Rh7 {[%emt 0:00:00]} Bg5 {[%emt 0:00:00]} 51. a4 {[%emt 0:00:00]} Be3 {[%emt 0:00:00]} 52. h3 {[%emt 0:00:00]} h5 {[%emt 0:00:00]} 53. Rh8+ {[%emt 0:00:00]} Kc7 {[%emt 0:00:00]} 54. Rg8 {[%emt 0:00:00]} Bf2 {[%emt 0:00:00]} 55. Rg7+ {[%emt 0:00:00]} Kc8 {[%emt 0:00:00]} 56. Rg8+ {[%emt 0:00:00]} Kc7 {[%emt 0:00:00]} 57. Rg7+ {[%emt 0:00:00]} Kc8 {[%emt 0:00:00]} 58. g4 {[%emt 0:00:00]} Be3 {[%emt 0:00:00]} 59. Rg8+ {[%emt 0:00:00]} Kc7 {[%emt 0:00:00]} 60. Rg7+ {[%emt 0:00:00]} Kc8 {[%emt 0:00:00]} 61. gxh5 {[%emt 0:03:17]} gxh5 {[%emt 0:00:00]} 62. Re7 {[%emt 0:01:29]} Bf2 {[%emt 0:00:00]} 63. Rf7 {[%emt 0:01:14]} Be3 {[%emt 0:00:00]} 64. Rf3 {[%emt 0:01:11]} Bg1 {[%emt 0:00:00]} 65. Rf8+ {[%emt 0:00:07]} Kc7 {[%emt 0:00:00]} 66. Rh8 {[%emt 0:00:05]} Rf6 {[%emt 0:02:06]} 67. Rxh5 {[%emt 0:00:06]} Be3 {[%emt 0:00:18]} 68. Rh7+ {[%emt 0:02:46]} Kd6 {[%emt 0:00:15]} 69. Bb7 {[%emt 0:00:35]} Rf4+ {[%emt 0:01:10] [#]} 70. Kd3 $1 {[%emt 0:00:05]} Bf2 {[%emt 0:00:17]} 71. Rh6+ {[%emt 0:00:26]} ({Don't play} 71. Bxa6 $6 Rxb4 72. Bb5 Rh4 $14) 71... Kc7 {[%emt 0:01:00]} 72. Be4 {[%emt 0:00:25]} ({Resist} 72. Bxa6 $6 Rxb4 73. Bb5 Rh4 $16) ({And not} 72. Rxa6 Kxb7 73. Rg6 Rxb4 $11) 72... Be1 {[%emt 0:00:18] [#]} 73. b5 $1 {[%emt 0:01:06]} ({Not} 73. Rxa6 Bxb4 74. Rc6+ Kd8 $16) 73... axb5 {[%emt 0:00:12]} 74. axb5 {[%emt 0:00:05]} Rh4 {[%emt 0:02:08] [#]} 75. b6+ $1 {[%emt 0:02:36]} Kb8 {[%emt 0:00:53]} 76. Rxh4 {[%emt 0:03:18]} Bxh4 {[%emt 0:00:15]} 77. Ke3 {[%emt 0:00:37]} Bg3 {[%emt 0:01:09]} 78. Kf3 {[%emt 0:00:06]} Bh2 {[%emt 0:00:31]} 79. h4 {[%emt 0:00:33]} 1-0

[Event "21st Hogeschool Zeeland 2017"]
[Site "Vlissingen"]
[Date "2017.08.12"]
[Round "9"]
[White "Maatman, Nick"]
[Black "Zwirs, Nico"]
[Result "1/2-1/2"]
[ECO "A27"]
[WhiteElo "2386"]
[BlackElo "2399"]
[Annotator "ChessBase"]
[PlyCount "156"]
[EventDate "2017.??.??"]
[SourceTitle "playchess.com"]
[Source "ChessBase"]
[SourceQuality "1"]
[TimeControl "40/5400+30:1800+30"]

1. d4 {[%emt 0:00:00]} d6 {[%emt 0:00:27]} 2. c4 {[%emt 0:10:19]} e5 {[%emt 0:00:42]} 3. Nf3 {[%emt 0:00:03]} exd4 {[%emt 0:00:51]} 4. Nxd4 {[%emt 0:00:09]} g6 {[%emt 0:00:58]} 5. g3 {[%emt 0:01:35]} Bg7 {[%emt 0:02:02]} 6. Bg2 {[%emt 0:00:06]} Ne7 {[%emt 0:03:43]} 7. Nc3 {[%emt 0:01:33]} Nbc6 {[%emt 0:00:19]} 8. Nxc6 {[%emt 0:00:35]} bxc6 {[%emt 0:00:06]} 9. O-O {[%emt 0:05:41]} O-O {[%emt 0:00:09]} 10. Qc2 {[%emt 0:05:13]} Bf5 {[%emt 0:04:42]} 11. e4 {[%emt 0:00:41]} Be6 {[%emt 0:01:21]} 12. b3 {[%emt 0:00:18]} c5 {[%emt 0:02:02]} 13. Bb2 {[%emt 0:06:43]} Nc6 {[%emt 0:11:30]} 14. Rae1 {[%emt 0:01:10]} Qd7 {[%emt 0:07:58]} 15. f4 {[%emt 0:08:38]} Rae8 {[%emt 0:11:42]} 16. Qd2 {[%emt 0:06:44]} Nd4 {[%emt 0:21:14]} 17. Ne2 {[%emt 0:06:00]} Nxe2+ {[%emt 0:02:05]} 18. Rxe2 {[%emt 0:00:04]} Bg4 {[%emt 0:04:41]} 19. Re3 {[%emt 0:06:05]} Bxb2 {[%emt 0:02:01]} 20. Qxb2 {[%emt 0:00:43]} Bh3 {[%emt 0:02:24]} 21. Bxh3 {[%emt 0:07:50]} Qxh3 {[%emt 0:00:03]} 22. Rfe1 {[%emt 0:00:16]} Re7 {[%emt 0:03:33]} 23. Qd2 {[%emt 0:10:51]} Rfe8 {[%emt 0:02:23]} 24. R1e2 {[%emt 0:03:59]} Qc8 {[%emt 0:06:55]} 25. Qe1 {[%emt 0:02:29]} Qa6 {[%emt 0:01:25]} 26. Qf2 {[%emt 0:01:07]} Qc6 {[%emt 0:00:21]} 27. Qe1 {[%emt 0:03:40]} Qa6 {[%emt 0:06:32]} 28. Qd2 {[%emt 0:00:42]} Re6 {[%emt 0:01:28]} 29. Qd5 {[%emt 0:02:57]} Qa3 {[%emt 0:00:05]} 30. Qd2 {[%emt 0:03:10]} Qa6 {[%emt 0:00:28]} 31. h4 {[%emt 0:00:39]} Qc8 {[%emt 0:00:34]} 32. Qd5 {[%emt 0:01:16]} R6e7 {[%emt 0:00:50]} 33. Kg2 {[%emt 0:00:23]} Qg4 {[%emt 0:00:34]} 34. Qg5 {[%emt 0:00:25]} Qe6 {[%emt 0:00:45]} 35. h5 {[%emt 0:01:29]} f6 {[%emt 0:00:17]} 36. Qh4 {[%emt 0:01:28]} Qf7 {[%emt 0:00:32]} 37. hxg6 {[%emt 0:00:41]} Qxg6 {[%emt 0:00:13]} 38. Kf3 {[%emt 0:00:42]} Rg7 {[%emt 0:00:54]} 39. Kf2 {[%emt 0:00:55]} a5 {[%emt 0:00:18]} 40. Qh3 {[%emt 0:01:31]} Rge7 {[%emt 0:30:27]} 41. Kf3 {[%emt 0:03:08]} h5 {[%emt 0:00:00]} 42. g4 {[%emt 0:04:21]} hxg4+ {[%emt 0:00:00]} 43. Qxg4 {[%emt 0:00:04]} Qxg4+ {[%emt 0:00:00]} 44. Kxg4 {[%emt 0:00:02]} Rh7 {[%emt 0:00:00]} 45. Rg3 {[%emt 0:08:37]} Rg7+ {[%emt 0:00:00]} 46. Kf3 {[%emt 0:00:15]} Rxg3+ {[%emt 0:00:00]} 47. Kxg3 {[%emt 0:00:01]} Kf7 {[%emt 0:00:00]} 48. Kf3 {[%emt 0:03:00]} Rh8 {[%emt 0:00:00]} 49. e5 {[%emt 0:03:47]} fxe5 {[%emt 0:00:00]} 50. fxe5 {[%emt 0:00:07]} Ke6 {[%emt 0:00:00]} 51. exd6+ {[%emt 0:00:12]} Kxd6 {[%emt 0:00:00]} 52. Rg2 {[%emt 0:01:18]} Kc6 {[%emt 0:00:11]} 53. Ke4 {[%emt 0:00:51]} Kb6 {[%emt 0:03:47]} 54. Kd3 {[%emt 0:00:36]} Rh3+ {[%emt 0:01:03]} 55. Kc2 {[%emt 0:00:14]} a4 {[%emt 0:00:18]} 56. bxa4 {[%emt 0:00:49]} Ka5 {[%emt 0:00:31]} 57. Kb2 {[%emt 0:03:13]} Kxa4 {[%emt 0:00:29]} 58. Rg7 {[%emt 0:03:36]} Rh2+ {[%emt 0:00:20]} 59. Kc3 {[%emt 0:00:16]} Rh3+ {[%emt 0:00:22]} 60. Kd2 {[%emt 0:00:22]} Kb4 {[%emt 0:00:14]} 61. Rxc7 {[%emt 0:00:10]} Kxc4 {[%emt 0:01:02]} 62. Rg7 {[%emt 0:00:17]} Rh2+ {[%emt 0:00:49]} 63. Kc1 {[%emt 0:00:06]} Rxa2 {[%emt 0:00:32]} 64. Rg3 {[%emt 0:00:15]} Kb4 {[%emt 0:00:51]} 65. Rh3 {[%emt 0:00:41]} Ra1+ {[%emt 0:01:29]} 66. Kc2 {[%emt 0:00:05]} Rg1 {[%emt 0:00:03]} 67. Rf3 {[%emt 0:00:15]} Rg2+ {[%emt 0:00:08]} 68. Kc1 {[%emt 0:00:05]} c4 {[%emt 0:00:16]} 69. Rh3 {[%emt 0:00:36]} Rg5 {[%emt 0:01:14]} 70. Kc2 {[%emt 0:00:21]} Ra5 {[%emt 0:00:23]} 71. Rg3 {[%emt 0:00:12]} Ra2+ {[%emt 0:00:03]} 72. Kc1 {[%emt 0:00:06]} Ra3 {[%emt 0:00:03]} 73. Rxa3 {[%emt 0:01:02]} Kxa3 {[%emt 0:00:03]} 74. Kc2 {[%emt 0:00:04]} Kb4 {[%emt 0:00:02]} 75. Kb2 {[%emt 0:00:05]} c3+ {[%emt 0:00:02]} 76. Kc1 {[%emt 0:00:25]} Kb3 {[%emt 0:00:08]} 77. Kb1 {[%emt 0:00:03]} c2+ {[%emt 0:00:09]} 78. Kc1 {[%emt 0:00:04]} Kc3 {[%emt 0:00:02]} 1/2-1/2

[Event "21st Hogeschool Zeeland 2017"]
[Site "Vlissingen"]
[Date "2017.08.12"]
[Round "9"]
[White "Van Baar, Esper"]
[Black "Warmerdam, Max"]
[Result "0-1"]
[ECO "B70"]
[WhiteElo "2172"]
[BlackElo "2387"]
[Annotator "ChessBase"]
[PlyCount "130"]
[EventDate "2017.??.??"]
[SourceTitle "playchess.com"]
[Source "ChessBase"]
[SourceQuality "1"]
[TimeControl "40/5400+30:1800+30"]

1. e4 c5 {[%emt 0:00:47]} 2. Nc3 {[%emt 0:02:22]} d6 {[%emt 0:00:14]} 3. Nge2 {[%emt 0:00:22]} Nc6 {[%emt 0:00:33]} 4. g3 {[%emt 0:01:13]} g6 {[%emt 0:00:05]} 5. d4 {[%emt 0:01:31]} cxd4 {[%emt 0:00:07]} 6. Nxd4 {[%emt 0:00:20]} Bg7 {[%emt 0:00:08]} 7. Nde2 {[%emt 0:00:11]} Nf6 {[%emt 0:04:37]} 8. Bg2 {[%emt 0:02:31]} O-O {[%emt 0:00:39]} 9. O-O {[%emt 0:00:12]} Rb8 {[%emt 0:04:11]} 10. a4 {[%emt 0:03:02]} a6 {[%emt 0:00:06]} 11. h3 {[%emt 0:06:06]} b5 {[%emt 0:01:01]} 12. axb5 {[%emt 0:01:07]} axb5 {[%emt 0:00:34]} 13. Be3 {[%emt 0:07:08]} b4 {[%emt 0:02:38]} 14. Nd5 {[%emt 0:00:47]} Nd7 {[%emt 0:00:21]} 15. Nd4 {[%emt 0:04:46]} Bxd4 {[%emt 0:05:05]} 16. Bxd4 {[%emt 0:02:48]} e6 {[%emt 0:00:10]} 17. Ne3 {[%emt 0:05:01]} e5 {[%emt 0:00:09]} 18. Ba7 {[%emt 0:00:10]} Rb7 {[%emt 0:00:34]} 19. Qxd6 {[%emt 0:01:29]} Nxa7 {[%emt 0:00:25]} 20. Nd5 {[%emt 0:05:18]} Re8 {[%emt 0:29:49]} 21. Nxb4 {[%emt 0:07:54]} Nb5 {[%emt 0:01:20]} 22. Qd2 {[%emt 0:07:02]} Nd4 {[%emt 0:00:38]} 23. Rad1 {[%emt 0:12:04]} Nf6 {[%emt 0:17:32]} 24. c3 {[%emt 0:01:47]} Rxb4 {[%emt 0:00:24]} 25. cxb4 {[%emt 0:02:16]} Bxh3 {[%emt 0:00:05]} 26. f3 {[%emt 0:08:11]} Qb6 {[%emt 0:01:31]} 27. Kh2 {[%emt 0:00:51]} Bxg2 {[%emt 0:03:28]} 28. Kxg2 {[%emt 0:00:09]} Rb8 {[%emt 0:01:19]} 29. Qg5 {[%emt 0:01:49]} Qe6 {[%emt 0:01:39]} 30. Ra1 {[%emt 0:07:10]} Rxb4 {[%emt 0:00:28]} 31. Ra8+ {[%emt 0:00:21]} Kg7 {[%emt 0:00:40]} 32. Rf2 {[%emt 0:01:54]} Nxf3 {[%emt 0:07:23]} 33. Rxf3 {[%emt 0:07:38]} Rxb2+ {[%emt 0:00:05]} 34. Kg1 {[%emt 0:00:21]} Nxe4 {[%emt 0:04:42]} 35. Qd8 {[%emt 0:00:55]} Qb6+ {[%emt 0:02:47]} 36. Qxb6 {[%emt 0:00:04]} Rxb6 {[%emt 0:00:04]} 37. Re3 {[%emt 0:01:07]} Ng5 {[%emt 0:06:37]} 38. Ra5 {[%emt 0:00:04]} f6 {[%emt 0:01:04]} 39. Ra7+ {[%emt 0:00:11]} Kh6 {[%emt 0:00:27]} 40. Re2 {[%emt 0:00:30]} Kh5 {[%emt 0:30:47]} 41. Kg2 {[%emt 0:08:45]} Kg4 {[%emt 0:00:00]} 42. Ra4+ {[%emt 0:03:37]} Kf5 {[%emt 0:00:00]} 43. g4+ {[%emt 0:01:01]} Ke6 {[%emt 0:00:00]} 44. Ra8 {[%emt 0:01:08]} Rd6 {[%emt 0:00:00]} 45. Rb8 {[%emt 0:01:30]} Rd4 {[%emt 0:00:00]} 46. Kg3 {[%emt 0:01:03]} Ne4+ {[%emt 0:00:00]} 47. Kf3 {[%emt 0:01:20]} f5 {[%emt 0:00:00]} 48. gxf5+ {[%emt 0:00:06]} gxf5 {[%emt 0:00:00]} 49. Re8+ {[%emt 0:00:30]} Kd5 {[%emt 0:00:00]} 50. Rg2 {[%emt 0:07:17]} Nd6 {[%emt 0:03:43]} 51. Re7 {[%emt 0:01:12]} f4 {[%emt 0:02:05]} 52. Rxh7 {[%emt 0:01:00]} Rd3+ {[%emt 0:00:13]} 53. Kg4 {[%emt 0:02:54]} f3 {[%emt 0:02:42]} 54. Rf2 {[%emt 0:01:14]} Ne4 {[%emt 0:00:53]} 55. Rd7+ {[%emt 0:05:26]} Ke6 {[%emt 0:00:06]} 56. Rxf3 {[%emt 0:00:42]} Rxf3 {[%emt 0:00:19]} 57. Kxf3 {[%emt 0:00:28]} Ng5+ {[%emt 0:00:04]} 58. Kg4 {[%emt 0:00:06]} Kxd7 {[%emt 0:00:04]} 59. Kxg5 {[%emt 0:00:13]} Ke6 {[%emt 0:00:05]} 60. Kg4 {[%emt 0:00:05]} Kd5 {[%emt 0:00:04]} 61. Kf3 {[%emt 0:00:19]} Kd4 {[%emt 0:00:04]} 62. Kf2 {[%emt 0:00:22]} Kd3 {[%emt 0:00:05]} 63. Ke1 {[%emt 0:00:03]} e4 {[%emt 0:00:16]} 64. Kd1 {[%emt 0:00:08]} e3 {[%emt 0:00:05]} 65. Ke1 {[%emt 0:00:03]} e2 {[%emt 0:00:03]} 0-1